[Event "*** Titled Tuesday Blitz"]
[Site "Chess.com"]
[Date "2020.10.27"]
[Round "4"]
[White "mbojan"]
[Black "GMBenjaminBok"]
[Result "0-1"]
[WhiteElo "2711"]
[BlackElo "2940"]
[TimeControl "180+1"]
[EndTime "10:39:22 PDT"]
[Termination "GMBenjaminBok won on time"]

1. e4 {[%clk 0:03:00.9]} 1... c5 {[%clk 0:02:59.7]} 2. Nf3 {[%clk 0:03:00.6]}
2... d6 {[%clk 0:03:00.3]} 3. d4 {[%clk 0:03:00.6]} 3... cxd4 {[%clk 0:03:01.2]}
4. Nxd4 {[%clk 0:03:01.1]} 4... Nf6 {[%clk 0:03:02]} 5. Nc3 {[%clk 0:03:01.4]}
5... a6 {[%clk 0:03:02.7]} 6. Bg5 {[%clk 0:03:01.3]} 6... Nbd7 {[%clk
0:03:02.3]} 7. Qe2 {[%clk 0:03:01.2]} 7... e6 {[%clk 0:02:55.1]} 8. f4 {[%clk
0:03:00.7]} 8... Qc7 {[%clk 0:02:52.2]} 9. O-O-O {[%clk 0:03:00.3]} 9... b5
{[%clk 0:02:52.4]} 10. a3 {[%clk 0:03:00.2]} 10... Rb8 {[%clk 0:02:43.4]} 11. g4
{[%clk 0:02:42.4]} 11... h6 {[%clk 0:02:37.6]} 12. Bxf6 {[%clk 0:02:14.2]} 12...
Nxf6 {[%clk 0:02:37]} 13. g5 {[%clk 0:01:56.2]} 13... hxg5 {[%clk 0:02:34.9]}
14. fxg5 {[%clk 0:01:57.1]} 14... Nh5 {[%clk 0:02:15.6]} 15. g6 {[%clk
0:01:57.2]} 15... Ng3 {[%clk 0:02:12.7]} 16. hxg3 {[%clk 0:01:09.6]} 16... Rxh1
{[%clk 0:02:12.6]} 17. gxf7+ {[%clk 0:00:59.5]} 17... Qxf7 {[%clk 0:02:11.8]}
18. e5 {[%clk 0:00:46.9]} 18... d5 {[%clk 0:02:02.5]} 19. Qg2 {[%clk 0:00:20.1]}
19... Qh5 {[%clk 0:01:00.4]} 20. Qxh1 {[%clk 0:00:15.6]} 20... Qxh1 {[%clk
0:00:59]} 21. Bxb5+ {[%clk 0:00:15.8]} 21... axb5 {[%clk 0:00:55.1]} 22. Rxh1
{[%clk 0:00:16.7]} 22... b4 {[%clk 0:00:54.9]} 23. axb4 {[%clk 0:00:16.8]} 23...
Rxb4 {[%clk 0:00:54.4]} 24. Nce2 {[%clk 0:00:17]} 24... Ba6 {[%clk 0:00:41.5]}
25. c3 {[%clk 0:00:16.8]} 25... Rb6 {[%clk 0:00:41]} 26. Nf4 {[%clk 0:00:15.3]}
26... Kf7 {[%clk 0:00:34.4]} 27. Rh2 {[%clk 0:00:11.8]} 27... g5 {[%clk
0:00:28.7]} 28. Nh3 {[%clk 0:00:08.9]} 28... Kg6 {[%clk 0:00:26.8]} 29. Nf2
{[%clk 0:00:07.7]} 29... Bg7 {[%clk 0:00:22]} 30. Ng4 {[%clk 0:00:08]} 30... Bd3
{[%clk 0:00:22.2]} 31. b4 {[%clk 0:00:06.4]} 31... Bf5 {[%clk 0:00:21.5]} 32.
Nxf5 {[%clk 0:00:06.7]} 32... Kxf5 {[%clk 0:00:21.3]} 33. Ne3+ {[%clk 0:00:07]}
33... Ke4 {[%clk 0:00:18.6]} 34. Kd2 {[%clk 0:00:04.4]} 34... Bxe5 {[%clk
0:00:17.5]} 35. Re2 {[%clk 0:00:04.6]} 35... Bxc3+ {[%clk 0:00:11.1]} 36. Kxc3
{[%clk 0:00:05.5]} 36... d4+ {[%clk 0:00:11.1]} 37. Kd2 {[%clk 0:00:06.2]} 37...
dxe3+ {[%clk 0:00:11.7]} 38. Rxe3+ {[%clk 0:00:07.1]} 38... Kd4 {[%clk
0:00:11.3]} 39. Rd3+ {[%clk 0:00:07.1]} 39... Ke4 {[%clk 0:00:11.6]} 40. Re3+
{[%clk 0:00:07.5]} 40... Kd4 {[%clk 0:00:11.7]} 41. b5 {[%clk 0:00:07.2]} 41...
e5 {[%clk 0:00:10.6]} 42. Rb3 {[%clk 0:00:04.8]} 42... Kc4 {[%clk 0:00:11]} 43.
Rc3+ {[%clk 0:00:04.9]} 43... Kxb5 {[%clk 0:00:07.8]} 44. Kd3 {[%clk 0:00:05.5]}
44... Rc6 {[%clk 0:00:06.1]} 45. Rb3+ {[%clk 0:00:06]} 45... Kc5 {[%clk
0:00:06.2]} 46. Ke4 {[%clk 0:00:06.5]} 46... Kd6 {[%clk 0:00:06.2]} 47. Kf5
{[%clk 0:00:03.3]} 47... Rc4 {[%clk 0:00:05.8]} 48. Kxg5 {[%clk 0:00:02.4]}
48... Ke6 {[%clk 0:00:05.7]} 49. Rb6+ {[%clk 0:00:01.8]} 49... Kd5 {[%clk
0:00:06.2]} 50. Rb1 {[%clk 0:00:01.9]} 50... Rc8 {[%clk 0:00:05.1]} 0-1

[Event "*** Titled Tuesday Blitz"]
[Site "Chess.com"]
[Date "2020.10.27"]
[Round "4"]
[White "IMprovidence"]
[Black "JoachimMouhamad"]
[Result "0-1"]
[WhiteElo "2444"]
[BlackElo "2298"]
[TimeControl "180+1"]
[EndTime "10:39:33 PDT"]
[Termination "JoachimMouhamad won on time"]

1. c4 {[%clk 0:03:00.9]} 1... e5 {[%clk 0:02:59.5]} 2. g3 {[%clk 0:03:00.4]}
2... Nf6 {[%clk 0:02:58.9]} 3. Bg2 {[%clk 0:02:59.4]} 3... d5 {[%clk 0:02:58.5]}
4. cxd5 {[%clk 0:02:58]} 4... Nxd5 {[%clk 0:02:59.4]} 5. Nc3 {[%clk 0:02:57.7]}
5... Nb6 {[%clk 0:02:57.8]} 6. d3 {[%clk 0:02:58]} 6... Nc6 {[%clk 0:02:57.5]}
7. Be3 {[%clk 0:02:57.4]} 7... Be7 {[%clk 0:02:56.8]} 8. Rc1 {[%clk 0:02:56.6]}
8... O-O {[%clk 0:02:56.2]} 9. a3 {[%clk 0:02:56.4]} 9... Re8 {[%clk 0:02:55.5]}
10. Bxc6 {[%clk 0:02:46.9]} 10... bxc6 {[%clk 0:02:53]} 11. Nf3 {[%clk
0:02:47.5]} 11... Bd6 {[%clk 0:02:38.5]} 12. O-O {[%clk 0:02:41.4]} 12... Bh3
{[%clk 0:02:35.1]} 13. Re1 {[%clk 0:02:41]} 13... h6 {[%clk 0:02:28.2]} 14. Ne4
{[%clk 0:02:38]} 14... f5 {[%clk 0:02:14]} 15. Nxd6 {[%clk 0:02:35.9]} 15...
Qxd6 {[%clk 0:02:11]} 16. Qb3+ {[%clk 0:02:27.3]} 16... Kh7 {[%clk 0:01:50.5]}
17. Qc3 {[%clk 0:02:09.6]} 17... Re6 {[%clk 0:01:39.5]} 18. Bc5 {[%clk
0:02:05.4]} 18... Qd5 {[%clk 0:01:15.2]} 19. e4 {[%clk 0:02:04.3]} 19... fxe4
{[%clk 0:01:06.8]} 20. dxe4 {[%clk 0:01:57.4]} 20... Qd7 {[%clk 0:01:05.3]} 21.
Nxe5 {[%clk 0:01:53.8]} 21... Qe8 {[%clk 0:01:05.4]} 22. Bxb6 {[%clk 0:01:40.8]}
22... cxb6 {[%clk 0:00:58.4]} 23. Nc4 {[%clk 0:01:36.4]} 23... Rd8 {[%clk
0:00:45.1]} 24. e5 {[%clk 0:01:30.8]} 24... Rd5 {[%clk 0:00:34.4]} 25. f4 {[%clk
0:01:28]} 25... Qh5 {[%clk 0:00:32.2]} 26. Qc2+ {[%clk 0:01:07.6]} 26... Bf5
{[%clk 0:00:30.7]} 27. Qe2 {[%clk 0:01:03.4]} 27... Qh3 {[%clk 0:00:25.5]} 28.
Ne3 {[%clk 0:00:59.5]} 28... Be4 {[%clk 0:00:19.6]} 29. Nxd5 {[%clk 0:00:54.3]}
29... cxd5 {[%clk 0:00:20.5]} 30. Rc7 {[%clk 0:00:46.6]} 30... Rg6 {[%clk
0:00:20.3]} 31. Qf2 {[%clk 0:00:40.1]} 31... h5 {[%clk 0:00:20.4]} 32. Re3
{[%clk 0:00:33.1]} 32... Kh6 {[%clk 0:00:19.9]} 33. Rf7 {[%clk 0:00:21.7]} 33...
Rc6 {[%clk 0:00:19.2]} 34. Re1 {[%clk 0:00:18.5]} 34... Rc2 {[%clk 0:00:18.1]}
35. Rxe4 {[%clk 0:00:16]} 35... Rxf2 {[%clk 0:00:15]} 36. Kxf2 {[%clk
0:00:16.2]} 36... Qxh2+ {[%clk 0:00:13.6]} 37. Ke3 {[%clk 0:00:15.5]} 37... Qg1+
{[%clk 0:00:13.2]} 38. Kd3 {[%clk 0:00:14.6]} 38... Qd1+ {[%clk 0:00:13.1]} 39.
Ke3 {[%clk 0:00:13.3]} 39... Qe1+ {[%clk 0:00:12]} 40. Kd3 {[%clk 0:00:13.1]}
40... Qxe4+ {[%clk 0:00:12.2]} 41. Kc3 {[%clk 0:00:13.4]} 41... Qc4+ {[%clk
0:00:11.5]} 42. Kd2 {[%clk 0:00:12.7]} 42... Qd4+ {[%clk 0:00:11.6]} 43. Kc2
{[%clk 0:00:12.5]} 43... Qe4+ {[%clk 0:00:11.6]} 44. Kb3 {[%clk 0:00:09.7]}
44... d4 {[%clk 0:00:12.1]} 45. Rd7 {[%clk 0:00:06]} 45... d3 {[%clk 0:00:11.8]}
46. Kc3 {[%clk 0:00:06]} 46... Qc6+ {[%clk 0:00:10.6]} 47. Kxd3 {[%clk
0:00:05.5]} 47... Qxd7+ {[%clk 0:00:10.8]} 48. Ke3 {[%clk 0:00:05.7]} 48... Kg6
{[%clk 0:00:10.6]} 49. Ke4 {[%clk 0:00:05.8]} 49... Qc6+ {[%clk 0:00:10.7]} 50.
Kd4 {[%clk 0:00:05.7]} 50... Kf5 {[%clk 0:00:11.1]} 51. e6 {[%clk 0:00:06.2]}
51... Kxe6 {[%clk 0:00:10.9]} 0-1

[Event "*** Titled Tuesday Blitz"]
[Site "Chess.com"]
[Date "2020.10.27"]
[Round "4"]
[White "TengisChess"]
[Black "garicradomir"]
[Result "0-1"]
[WhiteElo "2598"]
[BlackElo "2340"]
[TimeControl "180+1"]
[EndTime "10:39:34 PDT"]
[Termination "garicradomir won by checkmate"]

1. e4 {[%clk 0:03:00.9]} 1... Nc6 {[%clk 0:02:59.1]} 2. Nc3 {[%clk 0:02:59.8]}
2... e5 {[%clk 0:02:58.5]} 3. Bc4 {[%clk 0:02:57.4]} 3... Nf6 {[%clk 0:02:58.3]}
4. Nf3 {[%clk 0:02:53]} 4... Nxe4 {[%clk 0:02:57.4]} 5. Nxe4 {[%clk 0:02:46.9]}
5... d5 {[%clk 0:02:57.3]} 6. Bd3 {[%clk 0:02:45.3]} 6... dxe4 {[%clk
0:02:57.1]} 7. Bxe4 {[%clk 0:02:45.2]} 7... Bd6 {[%clk 0:02:57.4]} 8. O-O {[%clk
0:02:41.7]} 8... O-O {[%clk 0:02:56.9]} 9. c3 {[%clk 0:02:42.2]} 9... f5 {[%clk
0:02:56.4]} 10. Bd5+ {[%clk 0:02:35.7]} 10... Kh8 {[%clk 0:02:56.7]} 11. d3
{[%clk 0:02:31.2]} 11... Ne7 {[%clk 0:02:54.6]} 12. Bb3 {[%clk 0:02:28.2]} 12...
Ng6 {[%clk 0:02:52.2]} 13. Ng5 {[%clk 0:02:24.8]} 13... Qf6 {[%clk 0:02:44.8]}
14. Qh5 {[%clk 0:02:24.8]} 14... h6 {[%clk 0:02:40.3]} 15. Bd2 {[%clk
0:02:13.4]} 15... Bd7 {[%clk 0:02:39.7]} 16. Rae1 {[%clk 0:02:10.4]} 16... Be8
{[%clk 0:02:40]} 17. Qh3 {[%clk 0:02:06.7]} 17... a5 {[%clk 0:02:34.3]} 18. Ne6
{[%clk 0:02:00.3]} 18... Rg8 {[%clk 0:02:21.7]} 19. Bg5 {[%clk 0:01:52.8]} 19...
Qf7 {[%clk 0:02:12]} 20. Nd4 {[%clk 0:01:40.9]} 20... Qd7 {[%clk 0:02:03.3]} 21.
Be6 {[%clk 0:01:36.8]} 21... exd4 {[%clk 0:01:23.6]} 22. Bxd7 {[%clk 0:01:33.4]}
22... Bxd7 {[%clk 0:01:24.5]} 23. Bxh6 {[%clk 0:01:32.3]} 23... Rgf8 {[%clk
0:01:23.4]} 24. Bf4+ {[%clk 0:01:28.8]} 24... Kg8 {[%clk 0:01:22]} 25. Bxd6
{[%clk 0:01:28.7]} 25... cxd6 {[%clk 0:01:22.4]} 26. Qg3 {[%clk 0:01:16.4]}
26... Rf6 {[%clk 0:01:21.1]} 27. f4 {[%clk 0:01:13.7]} 27... dxc3 {[%clk
0:01:20.4]} 28. bxc3 {[%clk 0:01:13.4]} 28... Rc8 {[%clk 0:01:20.9]} 29. c4
{[%clk 0:01:13.2]} 29... Bc6 {[%clk 0:01:20.6]} 30. h4 {[%clk 0:01:12.5]} 30...
Kf7 {[%clk 0:01:19.8]} 31. h5 {[%clk 0:01:11.8]} 31... Nf8 {[%clk 0:01:19.6]}
32. Re7+ {[%clk 0:01:00.9]} 32... Kxe7 {[%clk 0:01:17.8]} 33. Qxg7+ {[%clk
0:01:00.8]} 33... Rf7 {[%clk 0:01:18.3]} 34. Re1+ {[%clk 0:01:00.3]} 34... Ne6
{[%clk 0:01:18.7]} 35. Qg6 {[%clk 0:00:29.5]} 35... Rf6 {[%clk 0:01:11.9]} 36.
Qg7+ {[%clk 0:00:23.5]} 36... Rf7 {[%clk 0:01:11.6]} 37. Qh6 {[%clk 0:00:23.5]}
37... Rf6 {[%clk 0:01:03.2]} 38. Qg5 {[%clk 0:00:23.2]} 38... Rf8 {[%clk
0:00:55.9]} 39. Qh4 {[%clk 0:00:19]} 39... Rg8 {[%clk 0:00:53.8]} 40. Re2 {[%clk
0:00:17.6]} 40... Kf7 {[%clk 0:00:54]} 41. h6 {[%clk 0:00:15.8]} 41... Rh8
{[%clk 0:00:48.7]} 42. Qh5+ {[%clk 0:00:15]} 42... Kf8 {[%clk 0:00:44.4]} 43.
Qh4 {[%clk 0:00:11.3]} 43... Rhxh6 {[%clk 0:00:43.1]} 44. Qg3 {[%clk 0:00:11.1]}
44... Rfg6 {[%clk 0:00:39.9]} 45. Qe3 {[%clk 0:00:10.5]} 45... Rh4 {[%clk
0:00:35.5]} 46. d4 {[%clk 0:00:09.8]} 46... Be4 {[%clk 0:00:33]} 47. d5 {[%clk
0:00:05.2]} 47... Nxf4 {[%clk 0:00:32.8]} 48. Qb6 {[%clk 0:00:04]} 48... Nxe2+
{[%clk 0:00:25.9]} 49. Kf2 {[%clk 0:00:04.2]} 49... Rxg2+ {[%clk 0:00:25.1]} 50.
Ke1 {[%clk 0:00:04.2]} 50... Rh1+ {[%clk 0:00:21]} 51. Kd2 {[%clk 0:00:04.5]}
51... Nd4+ {[%clk 0:00:12.7]} 52. Ke3 {[%clk 0:00:04.6]} 52... Nc2+ {[%clk
0:00:10.7]} 53. Kf4 {[%clk 0:00:02.4]} 53... Rf1+ {[%clk 0:00:10]} 54. Qf2
{[%clk 0:00:01]} 54... Rfxf2# {[%clk 0:00:09.9]} 0-1

[Event "*** Titled Tuesday Blitz"]
[Site "Chess.com"]
[Date "2020.10.27"]
[Round "4"]
[White "Khazieva_Elza"]
[Black "levallem"]
[Result "1-0"]
[WhiteElo "2476"]
[BlackElo "2303"]
[TimeControl "180+1"]
[EndTime "10:39:36 PDT"]
[Termination "Khazieva_Elza won by checkmate"]

1. e4 {[%clk 0:03:00.9]} 1... c5 {[%clk 0:02:59.9]} 2. Nf3 {[%clk 0:03:00.3]}
2... g6 {[%clk 0:03:00.2]} 3. d3 {[%clk 0:03:00.6]} 3... Nc6 {[%clk 0:02:59.6]}
4. g3 {[%clk 0:03:00.9]} 4... Bg7 {[%clk 0:02:59.9]} 5. Bg2 {[%clk 0:03:01.6]}
5... d6 {[%clk 0:03:00.2]} 6. O-O {[%clk 0:03:02.1]} 6... e5 {[%clk 0:03:00.5]}
7. Nc3 {[%clk 0:03:00.9]} 7... Nge7 {[%clk 0:03:00.7]} 8. Nd2 {[%clk 0:03:01.3]}
8... O-O {[%clk 0:02:59.6]} 9. Nc4 {[%clk 0:03:01.9]} 9... Be6 {[%clk
0:02:58.5]} 10. a4 {[%clk 0:03:01.8]} 10... a6 {[%clk 0:02:57.1]} 11. Nd5 {[%clk
0:02:53.9]} 11... Rb8 {[%clk 0:02:52.4]} 12. a5 {[%clk 0:02:53]} 12... Bxd5
{[%clk 0:02:14]} 13. exd5 {[%clk 0:02:52.6]} 13... Nd4 {[%clk 0:02:14]} 14. c3
{[%clk 0:02:51.6]} 14... Nb5 {[%clk 0:02:12.4]} 15. f4 {[%clk 0:02:47.3]} 15...
f6 {[%clk 0:02:08]} 16. Qb3 {[%clk 0:02:27.6]} 16... Kh8 {[%clk 0:01:41.4]} 17.
Bd2 {[%clk 0:02:25]} 17... Qd7 {[%clk 0:01:36.9]} 18. Nb6 {[%clk 0:02:10.6]}
18... Qc7 {[%clk 0:01:25.5]} 19. Bh3 {[%clk 0:01:49.7]} 19... Rbd8 {[%clk
0:01:09.5]} 20. Be6 {[%clk 0:01:48.3]} 20... Qb8 {[%clk 0:01:00.4]} 21. Nd7
{[%clk 0:01:44.6]} 21... Rxd7 {[%clk 0:00:55.9]} 22. Bxd7 {[%clk 0:01:45.5]}
22... Nc7 {[%clk 0:00:56.1]} 23. c4 {[%clk 0:01:35]} 23... f5 {[%clk 0:00:55.6]}
24. fxe5 {[%clk 0:01:23.1]} 24... Bxe5 {[%clk 0:00:54.5]} 25. Bc3 {[%clk
0:01:23.2]} 25... Qd8 {[%clk 0:00:52.3]} 26. Be6 {[%clk 0:01:13.9]} 26... Nxe6
{[%clk 0:00:51.8]} 27. dxe6 {[%clk 0:01:14.8]} 27... Qc7 {[%clk 0:00:50.9]} 28.
Rae1 {[%clk 0:00:56]} 28... Nc6 {[%clk 0:00:50.5]} 29. Qb6 {[%clk 0:00:50.5]}
29... Qxb6 {[%clk 0:00:50.1]} 30. axb6 {[%clk 0:00:50.5]} 30... Re8 {[%clk
0:00:50.1]} 31. g4 {[%clk 0:00:36.1]} 31... f4 {[%clk 0:00:29.1]} 32. Rxf4
{[%clk 0:00:32.2]} 32... Rxe6 {[%clk 0:00:24.2]} 33. Bxe5+ {[%clk 0:00:25]}
33... Nxe5 {[%clk 0:00:21.6]} 34. Ree4 {[%clk 0:00:20.2]} 34... Kg7 {[%clk
0:00:20.2]} 35. h3 {[%clk 0:00:20]} 35... h6 {[%clk 0:00:16]} 36. Rf1 {[%clk
0:00:19.2]} 36... g5 {[%clk 0:00:15.6]} 37. Kg2 {[%clk 0:00:16.7]} 37... Re7
{[%clk 0:00:15]} 38. Rf5 {[%clk 0:00:15.8]} 38... Re6 {[%clk 0:00:13.9]} 39. Kg3
{[%clk 0:00:15.8]} 39... Re7 {[%clk 0:00:14.1]} 40. h4 {[%clk 0:00:16.1]} 40...
Kg6 {[%clk 0:00:13.7]} 41. h5+ {[%clk 0:00:16]} 41... Kg7 {[%clk 0:00:14.1]} 42.
Re3 {[%clk 0:00:16]} 42... Re6 {[%clk 0:00:14]} 43. Rfxe5 {[%clk 0:00:15.7]}
43... dxe5 {[%clk 0:00:13.7]} 44. Kf3 {[%clk 0:00:15.6]} 44... Rf6+ {[%clk
0:00:12.7]} 45. Ke4 {[%clk 0:00:15.6]} 45... Rf4+ {[%clk 0:00:12.6]} 46. Kxe5
{[%clk 0:00:16]} 46... Rxg4 {[%clk 0:00:12.9]} 47. Kd6 {[%clk 0:00:15.9]} 47...
Rf4 {[%clk 0:00:10.8]} 48. Re7+ {[%clk 0:00:13.9]} 48... Kf6 {[%clk 0:00:10.8]}
49. Rxb7 {[%clk 0:00:13.4]} 49... g4 {[%clk 0:00:06.6]} 50. Rb8 {[%clk
0:00:12.6]} 50... Kg5 {[%clk 0:00:06.4]} 51. Rg8+ {[%clk 0:00:12.6]} 51... Kh4
{[%clk 0:00:06.3]} 52. b7 {[%clk 0:00:13.2]} 52... Rf6+ {[%clk 0:00:04.8]} 53.
Kxc5 {[%clk 0:00:13.5]} 53... Rf5+ {[%clk 0:00:03.6]} 54. Kb4 {[%clk 0:00:13.5]}
54... Rf2 {[%clk 0:00:02.9]} 55. Kc3 {[%clk 0:00:12.9]} 55... g3 {[%clk
0:00:01.7]} 56. b8=Q {[%clk 0:00:12.8]} 56... g2 {[%clk 0:00:02.6]} 57. Qg3+
{[%clk 0:00:12.5]} 57... Kxh5 {[%clk 0:00:01.5]} 58. Qg4# {[%clk 0:00:13.4]} 1-0

[Event "*** Titled Tuesday Blitz"]
[Site "Chess.com"]
[Date "2020.10.27"]
[Round "4"]
[White "ChessWarrior7197"]
[Black "RD4ever"]
[Result "1-0"]
[WhiteElo "2980"]
[BlackElo "2789"]
[TimeControl "180+1"]
[EndTime "10:39:37 PDT"]
[Termination "ChessWarrior7197 won on time"]

1. d4 {[%clk 0:03:00.9]} 1... Nf6 {[%clk 0:02:54.3]} 2. c4 {[%clk 0:03:00.5]}
2... g6 {[%clk 0:02:54.5]} 3. Nc3 {[%clk 0:02:59.5]} 3... Bg7 {[%clk 0:02:55]}
4. g3 {[%clk 0:02:58.7]} 4... O-O {[%clk 0:02:45.8]} 5. Bg2 {[%clk 0:02:58.6]}
5... d6 {[%clk 0:02:46.3]} 6. Nf3 {[%clk 0:02:59]} 6... c6 {[%clk 0:02:46.4]} 7.
O-O {[%clk 0:02:59.1]} 7... Qb6 {[%clk 0:02:46.9]} 8. b3 {[%clk 0:02:55.5]} 8...
e5 {[%clk 0:02:45.8]} 9. Bb2 {[%clk 0:02:49.7]} 9... e4 {[%clk 0:02:39.6]} 10.
Ne1 {[%clk 0:02:41.2]} 10... d5 {[%clk 0:02:37.7]} 11. Nc2 {[%clk 0:02:35.9]}
11... h5 {[%clk 0:02:20.8]} 12. Ne3 {[%clk 0:02:33.7]} 12... Be6 {[%clk
0:02:19.7]} 13. Na4 {[%clk 0:02:33.3]} 13... Qd8 {[%clk 0:02:11.8]} 14. Nc5
{[%clk 0:02:33.3]} 14... Bc8 {[%clk 0:02:11.3]} 15. b4 {[%clk 0:02:24.1]} 15...
b6 {[%clk 0:02:04.5]} 16. Nb3 {[%clk 0:02:23.5]} 16... Be6 {[%clk 0:02:03.8]}
17. cxd5 {[%clk 0:02:17.6]} 17... cxd5 {[%clk 0:02:04.7]} 18. f4 {[%clk
0:02:05.6]} 18... exf3 {[%clk 0:01:58.9]} 19. exf3 {[%clk 0:02:06.5]} 19... Qd7
{[%clk 0:01:49.6]} 20. a4 {[%clk 0:02:03.3]} 20... Bh3 {[%clk 0:01:42.7]} 21. b5
{[%clk 0:01:58.6]} 21... Bh6 {[%clk 0:01:30.5]} 22. Bxh3 {[%clk 0:01:57.5]}
22... Qxh3 {[%clk 0:01:30]} 23. Ng2 {[%clk 0:01:58.4]} 23... Nbd7 {[%clk
0:01:09.6]} 24. Bc1 {[%clk 0:01:58.6]} 24... Bxc1 {[%clk 0:01:09.4]} 25. Rxc1
{[%clk 0:01:59.5]} 25... Rac8 {[%clk 0:01:09.8]} 26. Qd3 {[%clk 0:01:57.2]}
26... Qe6 {[%clk 0:00:49.2]} 27. Rfe1 {[%clk 0:01:38.6]} 27... Qd6 {[%clk
0:00:49.2]} 28. Nf4 {[%clk 0:01:28.3]} 28... Kg7 {[%clk 0:00:49]} 29. Rc3 {[%clk
0:01:14.6]} 29... Qb4 {[%clk 0:00:45.6]} 30. Rec1 {[%clk 0:01:13.2]} 30... Rxc3
{[%clk 0:00:43.1]} 31. Rxc3 {[%clk 0:01:13.4]} 31... Qxa4 {[%clk 0:00:42.8]} 32.
Rc7 {[%clk 0:01:13.9]} 32... Re8 {[%clk 0:00:34.9]} 33. Kf2 {[%clk 0:00:59.6]}
33... Qa2+ {[%clk 0:00:34.3]} 34. Nd2 {[%clk 0:00:59.8]} 34... Nf8 {[%clk
0:00:30.8]} 35. h4 {[%clk 0:00:57.7]} 35... Kg8 {[%clk 0:00:29.5]} 36. Qc2
{[%clk 0:00:49.6]} 36... Qa1 {[%clk 0:00:27.4]} 37. Ne2 {[%clk 0:00:49.2]} 37...
Qh1 {[%clk 0:00:26.9]} 38. Nf1 {[%clk 0:00:49.4]} 38... Ne6 {[%clk 0:00:25.5]}
39. Rc8 {[%clk 0:00:47.2]} 39... Rxc8 {[%clk 0:00:23.6]} 40. Qxc8+ {[%clk
0:00:48.1]} 40... Kg7 {[%clk 0:00:24.5]} 41. Qb8 {[%clk 0:00:47.3]} 41... g5
{[%clk 0:00:21.1]} 42. hxg5 {[%clk 0:00:47.6]} 42... Nxg5 {[%clk 0:00:22]} 43.
Ng1 {[%clk 0:00:36.3]} 43... Nh3+ {[%clk 0:00:18.9]} 44. Nxh3 {[%clk 0:00:36.8]}
44... Qxh3 {[%clk 0:00:19.8]} 45. Qxa7 {[%clk 0:00:37.7]} 45... h4 {[%clk
0:00:19]} 46. g4 {[%clk 0:00:32.8]} 46... Qh1 {[%clk 0:00:16]} 47. Qb8 {[%clk
0:00:29]} 47... Kg6 {[%clk 0:00:10.8]} 48. Qe5 {[%clk 0:00:26.7]} 48... Nh7
{[%clk 0:00:06.2]} 49. Ne3 {[%clk 0:00:20.3]} 49... Qb1 {[%clk 0:00:04.5]} 50.
Qh5+ {[%clk 0:00:17.1]} 50... Kf6 {[%clk 0:00:03.5]} 51. Nxd5+ {[%clk
0:00:17.2]} 51... Ke6 {[%clk 0:00:03.9]} 52. Nf4+ {[%clk 0:00:16.1]} 52... Kf6
{[%clk 0:00:03.9]} 53. Qxh4+ {[%clk 0:00:16]} 53... Ng5 {[%clk 0:00:03.9]} 54.
Qh6+ {[%clk 0:00:16]} 1-0

[Event "*** Titled Tuesday Blitz"]
[Site "Chess.com"]
[Date "2020.10.27"]
[Round "4"]
[White "pedro_nascimento85"]
[Black "totoro9"]
[Result "0-1"]
[WhiteElo "1999"]
[BlackElo "2267"]
[TimeControl "180+1"]
[EndTime "10:39:38 PDT"]
[Termination "totoro9 won by checkmate"]

1. d4 {[%clk 0:03:00.9]} 1... Nf6 {[%clk 0:02:58.9]} 2. c4 {[%clk 0:02:59.5]}
2... g6 {[%clk 0:02:59.8]} 3. Nc3 {[%clk 0:02:58.4]} 3... Bg7 {[%clk 0:02:58.6]}
4. e4 {[%clk 0:02:58.3]} 4... d6 {[%clk 0:02:58.9]} 5. Be2 {[%clk 0:02:57.3]}
5... O-O {[%clk 0:02:55.2]} 6. Nf3 {[%clk 0:02:56.9]} 6... e5 {[%clk 0:02:47.3]}
7. d5 {[%clk 0:02:56]} 7... a5 {[%clk 0:02:39.7]} 8. Bg5 {[%clk 0:02:54.8]} 8...
h6 {[%clk 0:02:36.8]} 9. Bh4 {[%clk 0:02:54]} 9... g5 {[%clk 0:02:35.6]} 10. Bg3
{[%clk 0:02:53.6]} 10... Nh5 {[%clk 0:02:36.1]} 11. Nd2 {[%clk 0:02:52.3]} 11...
Nf4 {[%clk 0:02:18.8]} 12. O-O {[%clk 0:02:49.2]} 12... Nxe2+ {[%clk 0:02:14.7]}
13. Qxe2 {[%clk 0:02:45.7]} 13... Na6 {[%clk 0:02:14.7]} 14. a3 {[%clk
0:02:37.8]} 14... Qf6 {[%clk 0:02:11.7]} 15. Rab1 {[%clk 0:02:30.7]} 15... Qg6
{[%clk 0:02:11.5]} 16. b4 {[%clk 0:02:26.7]} 16... axb4 {[%clk 0:02:10.7]} 17.
axb4 {[%clk 0:02:26.1]} 17... h5 {[%clk 0:01:40.8]} 18. f3 {[%clk 0:02:20.9]}
18... g4 {[%clk 0:01:31.8]} 19. Bf2 {[%clk 0:02:17.5]} 19... Bh6 {[%clk
0:01:30.3]} 20. c5 {[%clk 0:02:14.6]} 20... Bxd2 {[%clk 0:01:11.7]} 21. Qxd2
{[%clk 0:02:13]} 21... gxf3 {[%clk 0:01:11.9]} 22. Be3 {[%clk 0:02:06.3]} 22...
fxg2 {[%clk 0:00:41]} 23. Qxg2 {[%clk 0:01:57.7]} 23... Bh3 {[%clk 0:00:39.7]}
24. Qxg6+ {[%clk 0:01:56.3]} 24... fxg6 {[%clk 0:00:39.7]} 25. Rxf8+ {[%clk
0:01:53.8]} 25... Rxf8 {[%clk 0:00:38.4]} 26. cxd6 {[%clk 0:01:43]} 26... cxd6
{[%clk 0:00:38.1]} 27. Bf2 {[%clk 0:01:38.3]} 27... Nc7 {[%clk 0:00:31.6]} 28.
b5 {[%clk 0:01:35.4]} 28... Rf3 {[%clk 0:00:31]} 29. Rc1 {[%clk 0:01:24.4]}
29... Ne8 {[%clk 0:00:27.6]} 30. b6 {[%clk 0:01:21.6]} 30... Nf6 {[%clk
0:00:27.4]} 31. Rc2 {[%clk 0:01:05.7]} 31... Ng4 {[%clk 0:00:23.4]} 32. Nd1
{[%clk 0:01:02.2]} 32... Rb3 {[%clk 0:00:18.8]} 33. Rc1 {[%clk 0:00:58.3]} 33...
Rb4 {[%clk 0:00:15.3]} 34. Nc3 {[%clk 0:00:55.7]} 34... Rb2 {[%clk 0:00:11.4]}
35. Nd1 {[%clk 0:00:54.6]} 35... Rb4 {[%clk 0:00:10.8]} 36. Nc3 {[%clk
0:00:45.1]} 36... Rc4 {[%clk 0:00:11]} 37. Bh4 {[%clk 0:00:36]} 37... Ne3 {[%clk
0:00:10.3]} 38. Ne2 {[%clk 0:00:32.5]} 38... Rxe4 {[%clk 0:00:09.7]} 39. Kf2
{[%clk 0:00:26.9]} 39... Nf5 {[%clk 0:00:08.9]} 40. Bd8 {[%clk 0:00:22.5]} 40...
Bg4 {[%clk 0:00:08.1]} 41. Ng3 {[%clk 0:00:21.4]} 41... Nxg3 {[%clk 0:00:07.8]}
42. Kxg3 {[%clk 0:00:20.5]} 42... Rd4 {[%clk 0:00:07.3]} 43. Rc7 {[%clk
0:00:18.9]} 43... Rxd5 {[%clk 0:00:07.7]} 44. Rxb7 {[%clk 0:00:18.7]} 44... Rb5
{[%clk 0:00:07.9]} 45. Rb8 {[%clk 0:00:18.5]} 45... Kf7 {[%clk 0:00:07.3]} 46.
Bc7 {[%clk 0:00:18.8]} 46... Ke6 {[%clk 0:00:07]} 47. Re8+ {[%clk 0:00:18]}
47... Kd5 {[%clk 0:00:06.9]} 48. Rd8 {[%clk 0:00:17.7]} 48... Ke4 {[%clk
0:00:06.2]} 49. Rxd6 {[%clk 0:00:15.9]} 49... g5 {[%clk 0:00:06.4]} 50. Kf2
{[%clk 0:00:14.4]} 50... Rb2+ {[%clk 0:00:06.5]} 51. Kg1 {[%clk 0:00:09.3]}
51... Ke3 {[%clk 0:00:04.9]} 52. Rc6 {[%clk 0:00:06.3]} 52... Rb1+ {[%clk
0:00:03.7]} 53. Kg2 {[%clk 0:00:06.4]} 53... Bf3+ {[%clk 0:00:04]} 54. Kg3
{[%clk 0:00:04.4]} 54... Rg1+ {[%clk 0:00:03.3]} 55. Kh3 {[%clk 0:00:03.8]}
55... Bg4# {[%clk 0:00:04.2]} 0-1